fUSD/lending_fUSD_20250820
["ID","MTS","AMOUNT","RATE_DAILY","PERIOD"]
[380357862,1755703841133,-666.0,0.00016837,3]
[380357863,1755703841142,-835.07500776,0.00017011,2]
[380357864,1755703841151,-566.4459389,0.0001708,2]
[380357865,1755703841161,-4152.0,0.000171,2]
[380357866,1755703841170,-21500.0,0.000171,2]
[380357867,1755703841179,-435.46592096,0.00017102,2]
[380357868,1755703841188,-1068.84867507,0.00017399,2]
[380357869,1755703841198,-369.04,0.00017527,2]
[380357870,1755703841207,-169.48106029,0.0001766,2]
[380357871,1755703841216,-300.0,0.00017699,2]
[380357872,1755703841226,-300.0,0.00017699,2]
[380357873,1755703841235,-300.0,0.00017699,2]
[380357874,1755703841245,-300.0,0.00017699,2]
[380357875,1755703841255,-173932.43,0.000177,2]
[380357876,1755703841264,-17782.51,0.000177,2]
[380357877,1755703841273,-16846.79386495,0.00017709,2]
[380357878,1755703841283,-286.68245065,0.00017712,2]
[380357879,1755703841293,-179.30816742,0.00017712,2]
[380357880,1755703841302,-179.30816742,0.0001772,2]
[380357881,1755703841312,-16846.79386495,0.00017721,2]
[380357882,1755703841321,-286.68245065,0.00017724,2]
[380357883,1755703841331,-1244.52230432,0.00017725,2]
[380357884,1755703841340,-233.96570257,0.00017729,2]
[380357886,1755703841349,-233.96570257,0.00017741,2]
[380357888,1755703841360,-179.30816742,0.00017744,2]
[380357890,1755703841370,-16846.79386495,0.00017754,2]
[380357893,1755703841380,-1244.52230432,0.00017759,2]
[380357895,1755703841390,-233.96570257,0.0001776,2]
[380357897,1755703841400,-1244.52230432,0.0001776,2]
[380357898,1755703841409,-16846.79386495,0.00017761,2]
[380357900,1755703841419,-16846.79386495,0.00017763,2]
[380357901,1755703841428,-16846.79386495,0.00017768,2]
[380357902,1755703841438,-286.68245065,0.0001777,2]
[380357903,1755703841447,-1244.52230432,0.00017771,2]
[380357904,1755703841456,-286.68245065,0.00017774,2]
[380357905,1755703841466,-179.30816742,0.00017775,2]
[380357906,1755703841475,-179.30816742,0.00017779,2]
[380357907,1755703841484,-233.96570257,0.00017787,2]
[380357908,1755703841492,-1244.52230432,0.00017788,2]
[380357909,1755703841501,-286.68245065,0.00017789,2]
[380357910,1755703841511,-233.96570257,0.00017789,2]
[380357911,1755703841520,-179.30816742,0.00017797,2]
[380357912,1755703841529,-1244.52230432,0.00017799,2]
[380357913,1755703841539,-286.68245065,0.00017811,2]
[380357914,1755703841548,-16846.79386495,0.00017817,2]
[380357915,1755703841557,-233.96570257,0.00017822,2]
[380357916,1755703841566,-179.30816742,0.00017833,2]
[380357917,1755703841575,-233.96570257,0.00017838,2]
[380357918,1755703841584,-286.68245065,0.00017841,2]
[380357919,1755703841594,-1244.52230432,0.00017841,2]
[380357920,1755703841605,-185.00214354,0.0001785,2]
[380357921,1755703841614,-473.89266648,0.000179,3]
[380357922,1755703841624,-500.0,0.00017973,2]
[380357923,1755703841633,-500.0,0.00017973,2]
[380357924,1755703841643,-504.44322309,0.00017973,2]
[380357925,1755703841652,-249.92415065,0.00017973,2]
[380357926,1755703841662,-500.0,0.00017973,2]
[380357927,1755703841671,-500.0,0.00017973,2]
[380357928,1755703841680,-500.0,0.00017973,2]
[380357929,1755703841690,-500.0,0.00017973,2]
[380357930,1755703841699,-399.49346105,0.00017973,2]
[380357931,1755703841709,-500.0,0.00017973,2]
[380357932,1755703841718,-500.0,0.00017973,2]
[380357933,1755703841727,-500.0,0.00017973,2]
[380357934,1755703841737,-276.03651359,0.00017973,2]
[380357935,1755703841746,-500.0,0.00017973,2]
[380357936,1755703841755,-500.0,0.00017973,2]
[380357937,1755703841764,-500.0,0.00017973,2]
[380357938,1755703841774,-500.0,0.00017973,2]
[380357939,1755703841784,-500.0,0.00017973,2]
[380357940,1755703841794,-500.0,0.00017973,2]
[380357941,1755703841803,-500.0,0.00017973,2]
[380357942,1755703841812,-500.0,0.00017973,2]
[380357943,1755703841821,-500.0,0.00017973,2]
[380357944,1755703841831,-336.96243007,0.00017973,2]
[380357945,1755703841840,-500.0,0.00017973,2]
[380357946,1755703841849,-150.0,0.00017982,2]
[380357947,1755703841860,-791.16124563,0.00017983,2]
[380357948,1755703841869,-1008.34276404,0.00017984,2]
[380357949,1755703841879,-1225.52428245,0.00017985,2]
[380357950,1755703841889,-1442.70580086,0.00017986,2]
[380357951,1755703841898,-1659.88731926,0.00017986,2]
[380357952,1755703841910,-1877.06883767,0.00017987,2]
[380357953,1755703841920,-2094.25035608,0.00017988,2]
[380357954,1755703841929,-2311.43187449,0.00017989,2]
[380357955,1755703841939,-2528.6133929,0.0001799,2]
[380357956,1755703841950,-349.36185289,0.00017998,2]
[380357957,1755703841959,-1250.0,0.00017999,2]
[380357958,1755703841968,-300.0,0.00017999,2]
[380357959,1755703841976,-300.0,0.00017999,2]
[380357960,1755703841987,-300.0,0.00017999,2]
[380357961,1755703841996,-300.0,0.00017999,2]
[380357962,1755703842005,-1325089.70503829,0.00018,2]
[380357963,1755703842013,-18279.84576004,0.00018,2]
[380357964,1755703842022,-233.277584,0.00018,2]
[380357965,1755703842031,-381.277014,0.00018,2]
[380357966,1755703842039,-297.817257,0.00018,2]
[380357967,1755703842047,-151.0,0.00018,2]
[380357968,1755703842055,-233.277584,0.00018,2]
[380357969,1755703842063,-297.817257,0.00018,2]
[380357970,1755703842072,-381.277014,0.00018,2]
[380357971,1755703842081,-151.0,0.00018,2]
[380357972,1755703842091,-233.277584,0.00018,2]
[380357973,1755703842100,-297.817257,0.00018,2]
[380357974,1755703842111,-381.277014,0.00018,2]
[380357975,1755703842119,-233.277584,0.00018,2]
[380357976,1755703842128,-297.817257,0.00018,2]
[380357977,1755703842137,-381.277014,0.00018,2]
[380357978,1755703842147,-151.0,0.00018,2]
[380357979,1755703842367,-151.0,0.00018,2]
[380357981,1755703842377,-151.0,0.00018,2]
[380357982,1755703842384,-403.32229,0.00018,2]
[380357984,1755703842393,-403.32229,0.00018,2]
[380357986,1755703842403,-403.32229,0.00018,2]
[380357987,1755703842412,-198.685108,0.00018,2]
[380357988,1755703842421,-403.32229,0.00018,2]
[380357990,1755703842431,-508.046368,0.00018,2]
[380357991,1755703842440,-151.0,0.00018,2]
[380357993,1755703842450,-198.685108,0.00018,2]
[380357995,1755703842459,-508.046368,0.00018,2]
[380357997,1755703842468,-151.0,0.00018,2]
[380357998,1755703842478,-198.685108,0.00018,2]
[380357999,1755703842487,-508.046368,0.00018,2]
[380358000,1755703842497,-198.685108,0.00018,2]
[380358001,1755703842506,-508.046368,0.00018,2]
[380358002,1755703842515,-151.0,0.00018,2]
[380358003,1755703842524,-151.0,0.00018,2]
[380358006,1755703842533,-151.0,0.00018,2]
[380358008,1755703842542,-151.0,0.00018,2]
[380358009,1755703842552,-151.0,0.00018,2]
[380358010,1755703842561,-2172.107414,0.00018,2]
[380358011,1755703842571,-2172.107414,0.00018,2]
[380358012,1755703842580,-302.034163,0.00018,2]
[380358013,1755703842589,-2172.107414,0.00018,2]
[380358014,1755703842598,-302.034163,0.00018,2]
[380358015,1755703842608,-2172.107414,0.00018,2]
[380358016,1755703842618,-302.034163,0.00018,2]
[380358017,1755703842627,-302.034163,0.00018,2]
[380358018,1755703842637,-443.804494,0.00018,2]
[380358019,1755703842646,-151.0,0.00018,2]
[380358020,1755703842655,-443.804494,0.00018,2]
[380358021,1755703842665,-151.0,0.00018,2]
[380358022,1755703842674,-151.0,0.00018,2]
[380358023,1755703842684,-443.804494,0.00018,2]
[380358024,1755703842694,-151.0,0.00018,2]
[380358025,1755703842703,-443.804494,0.00018,2]
[380358026,1755703842713,-151.0,0.00018,2]
[380358027,1755703842723,-151.0,0.00018,2]
[380358028,1755703842733,-151.0,0.00018,2]
[380358029,1755703842742,-151.0,0.00018,2]
[380358030,1755703842752,-151.0,0.00018,2]
[380358031,1755703842761,-151.0,0.00018,2]
[380358032,1755703842771,-151.0,0.00018,2]
[380358033,1755703842780,-299.778001,0.00018,2]
[380358034,1755703842789,-151.0,0.00018,2]
[380358035,1755703842799,-151.0,0.00018,2]
[380358036,1755703842808,-151.0,0.00018,2]
[380358037,1755703842818,-171.822591,0.00018,2]
[380358038,1755703842827,-299.778001,0.00018,2]
[380358039,1755703842837,-151.0,0.00018,2]
[380358040,1755703842847,-299.778001,0.00018,2]
[380358041,1755703842858,-299.778001,0.00018,2]
[380358042,1755703842867,-151.0,0.00018,2]
[380358043,1755703842876,-151.0,0.00018,2]
[380358044,1755703842886,-151.0,0.00018,2]
[380358045,1755703842895,-151.0,0.00018,2]
[380358046,1755703842908,-151.0,0.00018,2]
[380358047,1755703842917,-151.0,0.00018,2]
[380358048,1755703842927,-151.0,0.00018,2]
[380358049,1755703842936,-462.198119,0.00018,2]
[380358050,1755703842946,-151.0,0.00018,2]
[380358051,1755703842955,-462.198119,0.00018,2]
[380358052,1755703842964,-167.746567,0.00018,2]
[380358053,1755703842974,-151.0,0.00018,2]
[380358055,1755703842985,-462.198119,0.00018,2]
[380358056,1755703842996,-462.198119,0.00018,2]
[380358057,1755703843006,-151.0,0.00018,2]
[380358058,1755703843015,-151.0,0.00018,2]
[380358059,1755703843025,-151.0,0.00018,2]
[380358060,1755703843035,-364.588034,0.00018,2]
[380358061,1755703843044,-1670.917246,0.00018,2]
[380358063,1755703843054,-364.588034,0.00018,2]
[380358065,1755703843064,-151.0,0.00018,2]
[380358066,1755703843073,-1670.917246,0.00018,2]
[380358067,1755703843082,-1670.917246,0.00018,2]
[380358068,1755703843092,-364.588034,0.00018,2]
[380358069,1755703843101,-284.593365,0.00018,2]
[380358070,1755703843114,-1670.917246,0.00018,2]
[380358071,1755703843123,-364.588034,0.00018,2]
[380358072,1755703843133,-284.593365,0.00018,2]
[380358073,1755703843142,-151.0,0.00018,2]
[380358074,1755703843151,-284.593365,0.00018,2]
[380358076,1755703843160,-6893.96887,0.00018,2]
[380358078,1755703843169,-151.0,0.00018,2]
[380358081,1755703843179,-284.593365,0.00018,2]
[380358083,1755703843188,-6893.96887,0.00018,2]
[380358084,1755703843197,-151.0,0.00018,2]
[380358085,1755703843207,-6893.96887,0.00018,2]
[380358086,1755703843216,-524.014228,0.00018,2]
[380358087,1755703843225,-151.0,0.00018,2]
[380358088,1755703843235,-6893.96887,0.00018,2]
[380358089,1755703843254,-151.0,0.00018,2]
[380358090,1755703843264,-524.014228,0.00018,2]
[380358091,1755703843274,-151.0,0.00018,2]
[380358092,1755703843283,-151.0,0.00018,2]
[380358093,1755703843293,-400.047382,0.00018,2]
[380358094,1755703843303,-524.014228,0.00018,2]
[380358095,1755703843313,-151.0,0.00018,2]
[380358096,1755703843323,-487.891478,0.00018,2]
[380358097,1755703843332,-151.0,0.00018,2]
[380358098,1755703843342,-400.047382,0.00018,2]
[380358099,1755703843351,-524.014228,0.00018,2]
[380358100,1755703843364,-151.0,0.00018,2]
[380358101,1755703843374,-151.0,0.00018,2]
[380358102,1755703843383,-400.047382,0.00018,2]
[380358103,1755703843392,-487.891478,0.00018,2]
[380358104,1755703843405,-400.0,0.0001807,2]
[380358105,1755703843414,-173.37,0.00018079,2]
[380358106,1755703843424,-1744.10402827,0.000181,2]
[380358107,1755703843433,-835.07500776,0.00018233,2]
[380358108,1755703843443,-2187.55,0.000183,7]
[380358109,1755703843459,-200.0,0.00018337,2]
[380358110,1755703843478,-275.0,0.00018356,3]
[380358111,1755703843494,-1000.0,0.00018521,2]
[380358112,1755703843504,-1000.0,0.00018521,2]
[380358113,1755703843513,-1000.0,0.00018521,2]
[380358114,1755703843523,-747.19820501,0.00018521,2]
[380358115,1755703843532,-1000.0,0.00018521,2]
[380358116,1755703843541,-1000.0,0.00018521,2]
[380358117,1755703843551,-1000.0,0.00018521,2]
[380358118,1755703843560,-1000.0,0.00018521,2]
[380358119,1755703843570,-1000.0,0.00018521,2]
[380358120,1755703843579,-1000.0,0.00018521,2]
[380358121,1755703843589,-1000.0,0.00018521,2]
[380358122,1755703843598,-645.07709066,0.00018521,2]
[380358123,1755703843610,-1000.0,0.00018521,2]
[380358124,1755703843620,-1000.0,0.00018521,2]
[380358125,1755703843629,-1000.0,0.00018521,2]
[380358126,1755703843639,-1000.0,0.00018521,2]
[380358127,1755703843648,-589.99825164,0.00018521,2]
[380358128,1755703843658,-1000.0,0.00018521,2]
[380358129,1755703843668,-1000.0,0.00018521,2]
[380358130,1755703843677,-435.46592096,0.00018653,2]
[380358131,1755703843687,-2200.0,0.00018712,2]
[380358132,1755703843697,-1300.0,0.00018712,2]
[380358133,1755703843707,-800.0,0.00018712,2]
[380358134,1755703843716,-198.12,0.000188,2]
[380358135,1755703843726,-198.12,0.000188,2]
[380358136,1755703843735,-198.12,0.000188,2]
[380358137,1755703843745,-198.12,0.000188,2]
[380358138,1755703843755,-198.12,0.000188,2]
[380358139,1755703843765,-198.12,0.000188,2]
[380358140,1755703843776,-198.12,0.000188,2]
[380358141,1755703843786,-198.12,0.000188,2]
[380358142,1755703843796,-198.12,0.000188,2]
[380358143,1755703843806,-198.12,0.000188,2]
[380358144,1755703843815,-198.12,0.000188,2]
[380358145,1755703843825,-198.12,0.000188,2]
[380358146,1755703843834,-198.12,0.000188,2]
[380358147,1755703843844,-198.12,0.000188,2]
[380358148,1755703843853,-198.12,0.000188,2]
[380358149,1755703843864,-198.12,0.000188,2]
[380358150,1755703843874,-198.12,0.000188,2]
[380358151,1755703843884,-198.12,0.000188,2]
[380358152,1755703843893,-198.12,0.000188,2]
[380358153,1755703843906,-198.12,0.000188,2]
[380358154,1755703843916,-198.12,0.000188,2]
[380358155,1755703843927,-198.12,0.000188,2]
[380358156,1755703843937,-198.12,0.000188,2]
[380358157,1755703843946,-198.12,0.000188,2]
[380358158,1755703843957,-198.12,0.000188,2]
[380358159,1755703843966,-198.12,0.000188,2]
[380358160,1755703843977,-198.12,0.000188,2]
[380358161,1755703843987,-198.12,0.000188,2]
[380358162,1755703843997,-198.12,0.000188,2]
[380358163,1755703844006,-198.12,0.000188,2]
[380358164,1755703844016,-198.12,0.000188,2]
[380358165,1755703844025,-198.12,0.000188,2]
[380358166,1755703844035,-198.12,0.000188,2]
[380358167,1755703844044,-198.12,0.000188,2]
[380358168,1755703844054,-198.12,0.000188,2]
[380358169,1755703844063,-198.12,0.000188,2]
[380358170,1755703844073,-198.12,0.000188,2]
[380358171,1755703844083,-198.12,0.000188,2]
[380358172,1755703844092,-198.12,0.000188,2]
[380358173,1755703844102,-198.12,0.000188,2]
[380358174,1755703844115,-198.12,0.000188,2]
[380358175,1755703844125,-198.12,0.000188,2]
[380358176,1755703844134,-198.12,0.000188,2]
[380358177,1755703844144,-198.12,0.000188,2]
[380358178,1755703844153,-198.12,0.000188,2]
[380358179,1755703844163,-198.12,0.000188,2]
[380358180,1755703844172,-198.12,0.000188,2]
[380358181,1755703844182,-198.12,0.000188,2]
[380358182,1755703844191,-198.12,0.000188,2]
[380358183,1755703844200,-198.12,0.000188,2]
[380358184,1755703844210,-198.12,0.000188,2]
[380358185,1755703844221,-198.12,0.000188,2]
[380358186,1755703844230,-198.12,0.000188,2]
[380358187,1755703844240,-198.12,0.000188,2]
[380358188,1755703844249,-198.12,0.000188,2]
[380358189,1755703844259,-198.12,0.000188,2]
[380358190,1755703844269,-198.12,0.000188,2]
[380358191,1755703844278,-198.12,0.000188,2]
[380358192,1755703844288,-198.12,0.000188,2]
[380358193,1755703844298,-198.12,0.000188,2]
[380358194,1755703844308,-198.12,0.000188,2]
[380358195,1755703844318,-198.12,0.000188,2]
[380358196,1755703844327,-198.12,0.000188,2]
[380358197,1755703844336,-198.12,0.000188,2]
[380358198,1755703844346,-198.12,0.000188,2]
[380358199,1755703844358,-198.12,0.000188,2]
[380358200,1755703844368,-198.12,0.000188,2]
[380358201,1755703844377,-198.12,0.000188,2]
[380358202,1755703844387,-198.12,0.000188,2]
[380358203,1755703844397,-198.12,0.000188,2]
[380358204,1755703844406,-198.12,0.000188,2]
[380358205,1755703844416,-198.12,0.000188,2]
[380358206,1755703844425,-198.12,0.000188,2]
[380358207,1755703844436,-198.12,0.000188,2]
[380358208,1755703844445,-198.12,0.000188,2]
[380358209,1755703844455,-198.12,0.000188,2]
[380358210,1755703844464,-198.12,0.000188,2]
[380358211,1755703844474,-198.12,0.000188,2]
[380358212,1755703844484,-198.12,0.000188,2]
[380358213,1755703844493,-198.12,0.000188,2]
[380358214,1755703844503,-198.12,0.000188,2]
[380358215,1755703844512,-198.12,0.000188,2]
[380358216,1755703844523,-198.12,0.000188,2]
[380358217,1755703844532,-198.12,0.000188,2]
[380358218,1755703844543,-198.12,0.000188,2]
[380358219,1755703844553,-198.12,0.000188,2]
[380358220,1755703844562,-198.12,0.000188,2]
[380358221,1755703844572,-198.12,0.000188,2]
[380358222,1755703844582,-198.12,0.000188,2]
[380358223,1755703844592,-198.12,0.000188,2]
[380358224,1755703844602,-198.12,0.000188,2]
[380358225,1755703844618,-198.12,0.000188,2]
[380358226,1755703844628,-198.12,0.000188,2]
[380358227,1755703844638,-198.12,0.000188,2]
[380358228,1755703844648,-198.12,0.000188,2]
[380358229,1755703844659,-198.12,0.000188,2]
[380358230,1755703844669,-198.12,0.000188,2]
[380358231,1755703844679,-198.12,0.000188,2]
[380358232,1755703844689,-198.12,0.000188,2]
[380358233,1755703844699,-458.46930693,0.00018848,2]
[380358234,1755703844709,-212.04014818,0.00018848,2]
[380358235,1755703844720,-250.0,0.00018863,2]
[380358236,1755703844729,-2921.52472732,0.00018882,2]
[380358237,1755703844739,-160.0,0.00018918,2]
[380358238,1755703844749,-843.97594471,0.00018918,2]
[380358239,1755703844758,-25000.0,0.0001897,2]
[380358240,1755703844770,-300.0,0.00018999,2]
[380358241,1755703844782,-300.0,0.00018999,2]
[380358242,1755703844792,-130331.23998452,0.00019,3]
[380358243,1755703844802,-458.46930693,0.00019,3]
[380358244,1755703844811,-5062.94130812,0.00019,2]
[380358245,1755703844821,-7985.12,0.00019,2]
[380358246,1755703844831,-350.20949797,0.0001901,7]
[380358247,1755703844840,-1500.0,0.00019068,2]
[380358248,1755703844850,-1500.0,0.00019068,2]
[380358249,1755703844864,-1500.0,0.00019068,2]
[380358250,1755703844873,-1500.0,0.00019068,2]
[380358251,1755703844883,-1500.0,0.00019068,2]
[380358252,1755703844894,-1500.0,0.00019068,2]
[380358253,1755703844907,-1500.0,0.00019068,2]
[380358254,1755703845280,-1500.0,0.00019068,2]
[380358255,1755703845290,-1500.0,0.00019068,2]
[380358256,1755703845299,-1500.0,0.00019068,2]
[380358257,1755703845310,-1500.0,0.00019068,2]
[380358258,1755703845320,-1500.0,0.00019068,2]
[380358259,1755703845330,-1500.0,0.00019068,2]
[380358260,1755703845339,-1500.0,0.00019068,2]
[380358261,1755703845349,-1500.0,0.00019068,2]
[380358262,1755703845361,-151.0,0.00019178,2]
[380358263,1755703845370,-1000.0,0.00019178,2]
[380358264,1755703845380,-1000.0,0.00019178,2]
[380358265,1755703845390,-613.0,0.00019178,2]
[380358266,1755703845400,-5000.0,0.00019178,2]
[380358267,1755703845410,-162.39329532,0.0001924,2]
[380358268,1755703845420,-1016.07251768,0.000194,2]
[380358271,1755703845431,-167.72,0.00019441,2]
[380358273,1755703845441,-835.07500776,0.00019456,2]
[380358275,1755703845451,-2000.0,0.00019616,2]
[380358277,1755703845461,-414.80833616,0.00019616,2]
[380358278,1755703845471,-2000.0,0.00019616,2]
[380358279,1755703845481,-2000.0,0.00019616,2]
[380358280,1755703845491,-602.99012364,0.00019616,2]
[380358281,1755703845501,-2000.0,0.00019616,2]
[380358282,1755703845511,-2147.5437122,0.00019616,2]
[380358283,1755703845521,-2000.0,0.00019616,2]
[380358284,1755703845531,-2000.0,0.00019616,2]
[380358285,1755703845541,-968.73006626,0.00019616,2]
[380358286,1755703845551,-2000.0,0.00019616,2]
[380358287,1755703845560,-2000.0,0.00019616,2]
[380358288,1755703845570,-2000.0,0.00019616,2]
[380358289,1755703845580,-2000.0,0.00019616,2]
[380358290,1755703845590,-2000.0,0.00019616,2]
[380358291,1755703845600,-151.0,0.0001963,2]
[380358292,1755703845613,-199.24968661,0.0001963,2]
[380358293,1755703845622,-277.35679052,0.0001963,2]
[380358294,1755703845632,-9274.81107495,0.0001963,2]
[380358295,1755703845642,-9617.97908473,0.00019685,2]
[380358296,1755703845654,-17782.51,0.000197,2]
[380358297,1755703845664,-156.587,0.00019726,2]
[380358298,1755703845674,-169.48106029,0.0001973,2]
[380358299,1755703845684,-9973.84431086,0.0001974,2]
[380358300,1755703845693,-152.10730264,0.00019775,4]
[380358301,1755703845703,-150.62504572,0.00019775,4]
[380358302,1755703845714,-150.0,0.00019775,4]
[380358303,1755703845723,-182.05807441,0.00019775,4]
[380358304,1755703845733,-150.0,0.00019775,4]
[380358305,1755703845744,-184.26180278,0.00019775,4]
[380358306,1755703845754,-189.05924571,0.00019775,4]
[380358307,1755703845764,-276.40296495,0.00019775,4]
[380358308,1755703845774,-150.0,0.00019775,4]
[380358309,1755703845784,-276.03918311,0.00019775,4]
[380358310,1755703845794,-150.0,0.00019775,4]
[380358311,1755703845804,-10342.87655036,0.00019795,2]
[380358312,1755703845814,-150.0,0.000198,2]
[380358313,1755703845824,-2200.0,0.00019808,2]
[380358314,1755703845834,-1300.0,0.00019808,2]
[380358315,1755703845844,-800.0,0.00019808,2]
[380358316,1755703845854,-151.0,0.00019838,2]
[380358317,1755703845866,-151.0,0.00019838,2]
[380358318,1755703845876,-246.39601672,0.00019838,2]
[380358319,1755703845886,-151.0,0.00019838,2]
[380358320,1755703845896,-600.0,0.00019838,2]
[380358321,1755703845908,-151.0,0.00019838,2]
[380358322,1755703845918,-600.0,0.00019838,2]
[380358323,1755703845929,-151.0,0.00019838,2]
[380358324,1755703845939,-600.0,0.00019838,2]
[380358325,1755703845951,-151.0,0.00019838,2]
[380358326,1755703845962,-151.0,0.00019838,2]
[380358327,1755703845972,-600.0,0.00019838,2]
[380358328,1755703845983,-151.0,0.00019838,2]
[380358329,1755703845998,-600.0,0.00019838,2]
[380358330,1755703846008,-151.0,0.00019838,2]
[380358331,1755703846017,-151.0,0.00019838,2]
[380358332,1755703846028,-600.0,0.00019838,2]
[380358333,1755703846039,-151.0,0.00019838,2]
[380358334,1755703846048,-151.0,0.00019838,2]
[380358335,1755703846058,-600.0,0.00019838,2]
[380358336,1755703846068,-151.0,0.00019838,2]
[380358337,1755703846078,-151.0,0.00019838,2]
[380358338,1755703846088,-600.0,0.00019838,2]
[380358339,1755703846097,-151.0,0.00019838,2]
[380358340,1755703846107,-151.0,0.00019838,2]
[380358341,1755703846120,-600.0,0.00019838,2]
[380358342,1755703846130,-151.0,0.00019838,2]
[380358343,1755703846140,-151.0,0.00019838,2]
[380358345,1755703846150,-600.0,0.00019838,2]
[380358347,1755703846160,-151.0,0.00019838,2]
[380358349,1755703846170,-600.0,0.00019838,2]
[380358351,1755703846180,-151.0,0.00019838,2]
[380358352,1755703846190,-151.0,0.00019838,2]
[380358353,1755703846200,-151.0,0.00019838,2]
[380358354,1755703846210,-500.0,0.00019838,2]
[380358355,1755703846220,-154.46931601,0.00019838,2]
[380358356,1755703846230,-500.0,0.00019838,2]
[380358357,1755703846241,-151.0,0.00019838,2]
[380358358,1755703846251,-500.0,0.00019838,2]
[380358359,1755703846260,-151.0,0.00019838,2]
[380358360,1755703846271,-500.0,0.00019838,2]
[380358361,1755703846281,-500.0,0.00019838,2]
[380358362,1755703846291,-500.0,0.00019838,2]
[380358363,1755703846301,-151.0,0.00019838,2]
[380358364,1755703846311,-587.33829601,0.00019838,2]
[380358366,1755703846320,-721.12765535,0.00019838,2]
[380358369,1755703846330,-548.36854937,0.00019838,2]
[380358370,1755703846340,-151.0,0.00019838,2]
[380358371,1755703846349,-322.6107,0.00019838,2]
[380358372,1755703846361,-10725.56298273,0.0001985,2]
[380358373,1755703846370,-6291.79269251,0.00019852,2]
[380358374,1755703846381,-591.26,0.00019863,2]
[380358375,1755703846390,-1000.0,0.00019884,2]
[380358376,1755703846399,-4820.13124941,0.000199,3]
[380358377,1755703846408,-11122.40881309,0.00019905,2]
[380358378,1755703846417,-171.67356101,0.00019918,30]
[380358379,1755703846426,-300.0,0.00019949,2]
[380358380,1755703846435,-300.0,0.00019949,2]
[380358381,1755703846445,-300.0,0.00019949,2]
[380358382,1755703846455,-300.0,0.00019949,2]
[380358383,1755703846464,-300.0,0.00019949,2]
[380358384,1755703846474,-300.0,0.00019949,2]
[380358385,1755703846482,-568672.31149983,0.0001995,15]
[380358386,1755703846492,-11533.93793917,0.0001996,2]
[380358387,1755703846501,-400.0,0.0001997,2]
[380358388,1755703846511,-400.0,0.0001997,2]
[380358389,1755703846520,-514.0,0.0001997,2]
[380358390,1755703846530,-500.0,0.00019973,2]
[380358391,1755703846539,-77001.60776145,0.00019985,2]
[380358392,1755703846548,-300.0,0.00019999,2]
[380358393,1755703846557,-300.0,0.00019999,2]
[380358394,1755703846567,-300.0,0.00019999,2]
[380358395,1755703846576,-300.0,0.00019999,2]
[380358396,1755703846586,-45920.00691459,0.0002,2]
[380358397,1755703846595,-900.0,0.0002,2]
[380358398,1755703846604,-900.0,0.0002,2]
[380358399,1755703846617,-900.0,0.0002,2]